bitfinex/quotes_ETHUSD_20250130
["timestamp","ask_amount","ask_price","bid_price","bid_amount"]
[1738248734742,3.444405,3272.4,3271.6,0.09582361]
[1738248735002,3.05596,3272.3,3271.6,0.09582361]
[1738248735191,0.388455,3272.4,3271.6,0.09582361]
[1738248735488,3.06347,3272.3,3271.6,0.09582361]
[1738248735647,0.8286,3272.5,3271.6,0.09582361]
[1738248735959,3.05606,3272.2,3271.6,0.09582361]
[1738248736147,3.05606,3272.2,3271.4,0.28152469]
[1738248736348,3.0562,3272.1,3271.4,0.28152469]
[1738248736544,0.611226,3272.0,3271.4,0.28152469]
[1738248736794,0.611226,3272.0,3271.1,3.0]
[1738248736795,0.794,3272.0,3270.9,3.0]
[1738248736996,3.05651,3271.8,3270.9,3.0]
[1738248737302,3.0564,3271.9,3270.6,3.05751]
[1738248737460,3.05651,3271.8,3270.9,3.0]
[1738248737658,3.8503,3272.0,3269.6,3.55290063]
[1738248737659,0.779,3273.0,3271.8,3.05638]
[1738248737989,0.779,3273.0,3272.8,3.98382699]
[1738248738391,0.779,3273.6,3272.8,3.98382699]
[1738248738602,3.05492,3273.4,3272.8,3.98382699]
[1738248738804,3.06233,3273.5,3272.8,3.98382699]
[1738248739179,3.05493,3273.4,3272.8,3.98382699]
[1738248739379,0.306243,3273.3,3272.8,3.98382699]
[1738248739574,0.779,3273.6,3272.8,3.98382699]
[1738248739894,0.779,3273.6,3271.9,0.305638]
[1738248739895,3.05523,3273.1,3272.3,3.98382699]
[1738248740091,0.774,3272.2,3271.8,3.98382699]
[1738248740998,0.8044,3272.8,3272.2,3.0]
[1738248741347,0.247,3274.0,3272.8,3.98382699]
[1738248741348,0.8044,3273.2,3272.8,3.98382699]
[1738248742249,0.8044,3273.6,3272.8,3.98382699]
[1738248742549,0.8044,3273.6,3272.8,4.37603191]
[1738248742749,0.8044,3273.6,3272.8,3.98382699]
[1738248743109,0.8044,3273.6,3272.9,0.3067]
[1738248743652,0.8044,3273.6,3272.8,3.98382699]
[1738248743653,3.85914,3273.6,3272.8,3.98382699]
[1738248743852,3.05492,3273.4,3272.8,3.98382699]
[1738248744149,0.8044,3273.2,3272.4,0.3067]
[1738248744452,0.015,3273.1,3272.3,3.98382699]
[1738248745467,0.8044,3273.2,3272.3,3.98382699]
[1738248745819,0.8044,3273.2,3272.8,3.98382699]
[1738248746365,0.7983,3273.9,3272.8,3.98382699]
[1738248746854,0.409969,3273.8,3272.8,3.98382699]
[1738248747222,3.85276,3273.9,3272.8,3.98382699]
[1738248747421,0.7983,3273.9,3272.8,3.98382699]
[1738248748564,0.7983,3273.9,3273.3,3.98382699]
[1738248748565,0.7833,3273.9,3273.3,3.98382699]
[1738248748871,0.015,3274.1,3273.3,3.98382699]
[1738248749064,0.015,3273.9,3272.8,3.98382699]
[1738248749369,0.0075,3273.7,3272.8,3.98382699]
[1738248749537,0.015,3273.7,3272.9,3.0]
[1738248749744,3.06972,3273.7,3272.9,3.0]
[1738248750065,0.8061,3273.6,3272.8,3.98382699]
[1738248750220,0.015,3273.5,3272.8,3.98382699]
[1738248750972,0.7715,3274.6,3273.4,3.98382699]
[1738248751126,0.7715,3274.6,3273.9,3.98382699]
[1738248753278,0.7715,3274.6,3273.9,7.03826699]
[1738248753576,0.7774,3275.0,3273.9,3.98382699]
[1738248754786,0.7774,3275.0,3274.0,3.05435]
[1738248755094,0.7774,3275.0,3273.9,3.98382699]
[1738248755244,0.015,3274.7,3273.4,4.59064373]
[1738248755443,0.7765,3274.6,3273.4,4.59064373]
[1738248755779,0.247,3274.5,3273.4,4.59064373]
[1738248756245,0.247,3274.5,3273.5,3.0]
[1738248756645,0.7765,3274.6,3273.9,3.98382699]
[1738248757466,0.7865,3274.9,3274.0,3.05435]
[1738248757668,0.7865,3274.9,3274.1,0.8164]
[1738248758387,3.4535,3275.3,3274.3,3.05408]
[1738248758682,0.7865,3275.3,3274.4,3.98382699]
[1738248759059,0.015,3275.2,3274.4,3.98382699]
[1738248759277,0.015,3275.2,3273.9,3.98382699]
[1738248759491,0.015,3275.2,3273.9,4.60342854]
[1738248759785,0.246,3275.1,3273.9,7.65787854]
[1738248759982,0.246,3275.1,3274.0,3.0]
[1738248760211,0.246,3275.1,3274.1,0.55]
[1738248760417,0.246,3275.1,3274.0,3.0]
[1738248760613,0.246,3275.1,3273.9,4.60342854]
[1738248760983,0.245,3275.2,3274.1,3.05421]
[1738248761309,0.245,3275.2,3274.2,0.55]
[1738248761509,0.7865,3275.3,3273.9,10.65784854]
[1738248761510,0.7865,3275.3,3274.1,3.6042]
[1738248761813,0.7865,3275.3,3274.2,3.05411]
[1738248762213,0.7865,3275.3,3274.1,3.60425]
[1738248762518,0.7865,3275.3,3274.2,0.55]
[1738248763220,0.015,3275.2,3274.0,3.0]
[1738248763387,0.015,3275.0,3273.9,3.98382699]
[1738248763717,0.761,3275.1,3273.9,3.98382699]
[1738248764015,0.015,3275.0,3273.9,3.98382699]
[1738248764214,0.0075,3274.8,3273.9,3.98382699]
[1738248764370,0.0075,3274.8,3273.4,3.88179]
[1738248764371,0.8297,3274.5,3273.4,3.98382699]
[1738248764573,0.8297,3274.5,3273.5,3.61746204]
[1738248764787,0.8297,3274.5,3273.5,4.37759094]
[1738248764982,0.8297,3274.5,3273.6,0.3067]
[1738248765721,3.05305,3275.5,3273.9,3.98382699]
[1738248766016,0.244,3275.1,3274.0,3.36098]
[1738248766170,0.8257,3275.4,3274.2,0.3067]
[1738248766375,0.245,3275.3,3274.2,0.3067]
[1738248766573,0.8257,3275.4,3274.2,0.3067]
[1738248766790,0.015,3275.3,3274.2,0.3067]
[1738248766985,0.7888,3275.2,3274.2,0.3067]
[1738248767220,0.015,3274.8,3273.6,0.3067]
[1738248767382,1.095653,3274.7,3273.6,0.3067]
[1738248767587,0.7888,3274.7,3273.6,0.3067]
[1738248768292,0.7888,3274.7,3273.8,0.3067]
[1738248768526,0.7888,3274.7,3274.0,0.3067]
[1738248768996,0.826,3276.0,3274.2,3.05412]
[1738248769198,3.25224,3276.3,3274.1,0.8567]
[1738248769199,0.015,3275.8,3274.1,0.55]
[1738248769386,0.015,3275.6,3274.1,3.60422]
[1738248769583,0.015,3275.6,3274.1,4.50166178]
[1738248769784,0.0075,3275.4,3274.1,4.50166178]
[1738248770021,0.0075,3275.4,3274.2,0.3067]
[1738248770233,0.0075,3275.4,3274.4,0.3067]
[1738248770387,0.7664,3276.4,3275.3,7.03689699]
[1738248770594,0.7664,3276.4,3275.5,0.3067]
[1738248771280,0.0075,3276.3,3275.5,0.3067]
[1738248771484,0.0075,3276.3,3274.8,4.76982699]
[1738248771485,0.015,3276.1,3274.9,0.90773626]
[1738248772129,0.7895,3276.2,3275.1,0.3067]
[1738248772433,0.7895,3276.2,3276.0,3.98382699]
[1738248773105,0.1671596,3276.5,3276.0,3.98382699]
[1738248773299,0.1671596,3276.5,3276.0,4.38220969]
[1738248773485,0.1671596,3276.5,3276.0,3.98382699]
[1738248773935,0.1671596,3276.5,3276.0,4.605405]
[1738248774829,0.0075,3276.4,3275.5,3.98382699]
[1738248775031,0.0075,3276.4,3275.5,4.06593816]
[1738248775403,0.015,3276.4,3275.5,4.06593816]
[1738248775811,0.015,3276.4,3275.6,0.00109785]
[1738248775990,0.1671596,3276.5,3275.6,0.00109785]
[1738248776194,0.1671596,3276.5,3276.0,3.98382699]
[1738248776640,0.015,3276.4,3276.0,3.98382699]
[1738248777336,0.1671596,3276.5,3276.0,3.98382699]
[1738248777847,0.15489464,3278.9,3277.0,0.7849]
[1738248778040,0.8275,3279.0,3278.2,3.98382699]
[1738248778636,0.8275,3279.0,3278.2,3.43212982]
[1738248779062,0.7986,3278.3,3278.2,3.43212982]
[1738248779413,0.1671596,3279.8,3278.7,3.04998]
[1738248779680,0.1671596,3279.8,3279.7,3.04905]
[1738248779957,0.7756,3281.2,3279.7,8.82477873]
[1738248780114,5.04983758,3283.0,3280.3,3.43212982]
[1738248780115,0.1,3281.3,3280.3,3.43212982]
[1738248780313,0.2364,3281.2,3280.3,3.43212982]
[1738248780512,0.82929091,3281.6,3281.1,3.43212982]
[1738248780826,0.82929091,3281.6,3279.7,0.03048486]
[1738248780827,0.01299091,3281.6,3280.1,0.7876]
[1738248781022,0.01299091,3281.6,3279.7,3.95738339]
[1738248781023,1.0163,3281.5,3280.2,0.61717802]
[1738248781406,0.8163,3281.5,3279.9,3.04883]
[1738248781611,0.01299091,3281.6,3279.9,3.0488]
[1738248781843,0.01299091,3281.6,3279.9,0.60117914]
[1738248782042,0.7543,3281.5,3279.6,0.81]
[1738248782244,0.282,3281.4,3279.7,0.61156009]
[1738248782463,0.7543,3281.5,3279.9,3.0]
[1738248782679,0.7543,3281.5,3280.2,3.04852]
[1738248782880,0.7543,3281.5,3280.0,3.10451912]
[1738248783061,1.0373,3281.5,3280.2,3.04853]
[1738248783234,1.0373,3281.5,3280.0,0.05574912]
[1738248783235,1.0373,3281.5,3280.0,3.10444912]
[1738248783437,0.283,3281.4,3280.0,0.05574912]
[1738248783635,0.811,3281.3,3280.0,0.05574912]
[1738248783845,0.7544,3281.1,3279.0,3.04965]
[1738248784068,3.04881,3280.0,3278.7,0.60441555]
[1738248784288,3.7544,3280.4,3277.8,0.7668]
[1738248784289,4.26226439,3279.9,3277.8,0.7668]
[1738248784474,0.304881,3279.9,3278.4,3.05018]
[1738248784676,0.8233,3280.5,3279.2,3.04945]
[1738248785033,0.8233,3280.5,3279.5,3.04921]
[1738248785233,0.8233,3280.5,3279.3,0.7794]
[1738248785455,0.839,3280.4,3279.2,0.05576272]
[1738248785657,0.18123,3280.3,3279.2,0.05576272]
[1738248785874,0.8134,3279.8,3277.9,0.27901808]
[1738248786035,0.55,3280.2,3277.9,0.27901808]
[1738248786036,3.015,3279.2,3277.9,0.27901808]
[1738248786252,0.5556242,3279.1,3277.9,0.27901808]
[1738248786450,0.8134,3279.1,3277.9,0.27901808]
[1738248786683,0.55,3278.9,3277.9,0.27901808]
[1738248786987,0.8134,3279.1,3277.5,3.0511]
[1738248787485,0.015,3279.0,3277.8,0.62193335]
[1738248787785,0.8134,3279.1,3277.8,0.62193335]
[1738248787786,0.8134,3279.1,3277.9,3.05072]
[1738248788009,0.8134,3279.1,3278.0,3.05059]
[1738248788214,0.8134,3279.1,3278.1,3.05048]
[1738248788419,0.8134,3279.1,3277.8,0.62193335]
[1738248788697,0.295,3279.4,3278.2,3.05044]
[1738248788839,0.295,3279.4,3278.5,3.05012]
[1738248789041,0.295,3279.4,3278.5,3.80359]
[1738248789259,0.015,3279.3,3278.0,3.0]
[1738248789467,0.31,3279.3,3278.0,3.05064]
[1738248789666,0.31,3279.3,3277.9,0.7535]
[1738248790040,0.295,3279.3,3278.0,3.05064]
[1738248790256,0.295,3279.3,3278.2,3.0504]
[1738248790751,0.294,3279.3,3278.1,3.05054]
[1738248790984,0.015,3279.2,3278.0,3.05064]
[1738248791196,0.294,3279.3,3277.8,0.62193335]
[1738248791197,0.7584,3278.9,3277.8,0.62193335]
[1738248791417,3.97238339,3278.8,3276.2,0.7691]
[1738248791615,0.47307834,3278.7,3277.0,3.05155]
[1738248791787,0.565,3278.6,3277.1,0.61875991]
[1738248792352,3.95738339,3278.3,3276.5,3.05202]
[1738248792556,0.7721,3278.5,3276.2,0.7691]
[1738248792850,0.7721,3278.5,3276.6,0.60356401]
[1738248793055,0.7721,3278.5,3277.5,3.05103]
[1738248793456,0.7721,3278.5,3277.6,3.05097]
[1738248793656,0.7721,3278.5,3277.5,3.05107]
[1738248794111,0.7621,3278.5,3277.8,3.05074]
[1738248794277,0.292,3279.5,3278.1,3.05046]
[1738248794605,0.292,3279.5,3278.0,6.05062]
[1738248794808,0.282,3279.5,3278.0,6.05062]
[1738248795105,7.17214339,3280.3,3277.8,0.7765]
[1738248795106,0.015,3280.2,3278.5,3.05009]
[1738248795321,0.292,3280.1,3278.5,3.05009]
[1738248795462,3.33069,3280.1,3278.1,3.0]
[1738248795662,3.33069,3280.1,3278.0,0.59876217]
[1738248795663,0.015,3279.9,3278.0,0.59876217]
[1738248795864,0.565,3279.9,3277.8,3.8273]
[1738248796171,0.565,3279.5,3277.3,0.7634]
[1738248796371,0.015,3279.5,3277.7,3.05083]
[1738248796586,0.015,3279.5,3277.5,3.0]
[1738248796794,0.015,3279.5,3277.7,3.05088]
[1738248796986,3.565,3279.7,3277.4,3.05119]
[1738248797162,0.015,3279.1,3277.2,4.56567201]
[1738248797362,0.015,3278.9,3277.2,3.95738339]
[1738248797561,0.015,3278.9,3277.3,3.0]
[1738248797793,0.015,3278.9,3277.5,3.05107]
[1738248798038,0.015,3278.9,3277.6,3.05099]
[1738248798205,0.015,3278.9,3277.4,3.05119]
[1738248798721,0.015,3278.7,3277.1,0.60236512]
[1738248799040,0.015,3278.7,3276.9,3.05162]
[1738248799041,0.7874,3278.6,3276.9,3.05162]
[1738248799192,0.7874,3278.6,3276.8,4.38500123]
[1738248799396,0.7874,3278.6,3277.5,3.0]
[1738248799588,0.7874,3278.6,3277.7,3.95738339]
[1738248799891,0.7874,3278.6,3277.8,0.3067]
[1738248800211,0.7874,3278.6,3277.5,3.05109]
[1738248800406,0.7874,3278.6,3277.4,0.60102165]
[1738248800723,0.015,3278.5,3276.7,3.95738339]
[1738248800893,0.015,3278.5,3276.9,3.05166]
[1738248801092,0.7874,3279.2,3278.2,3.95738339]
[1738248801508,0.292,3280.0,3278.4,3.05026]
[1738248801712,0.752,3280.8,3279.5,3.04918]
[1738248801925,0.292,3280.7,3279.5,3.04918]
[1738248802137,0.7999,3280.5,3278.8,3.0]
[1738248802436,0.015,3279.9,3278.8,0.61901621]
[1738248802643,3.06376,3280.1,3277.8,0.7598]
[1738248802644,0.015,3279.6,3278.3,3.05034]
[1738248802801,0.015,3279.6,3278.3,3.05036]
[1738248802997,0.015,3279.6,3278.4,3.05018]
[1738248803645,0.015,3279.6,3278.4,3.04638576]
[1738248803843,0.015,3279.6,3278.4,0.28053184]
[1738248803995,0.8086,3279.5,3278.4,0.28053184]
[1738248804196,0.015,3279.2,3278.4,0.28053184]
[1738248804834,0.8011,3279.1,3278.4,0.28053184]
[1738248805003,0.8011,3278.7,3278.4,0.28053184]
[1738248805335,0.29,3278.6,3278.4,0.28053184]
[1738248805538,0.0075,3278.5,3278.4,0.28053184]
[1738248806107,0.8086,3278.5,3278.4,0.28053184]
[1738248806713,0.8161,3278.5,3278.4,0.28053184]
[1738248807001,1.231723,3278.5,3278.4,0.28053184]
[1738248807217,1.231723,3278.5,3277.8,0.44887834]
[1738248807218,0.0075,3278.2,3277.8,0.44887834]
[1738248807397,0.0075,3278.0,3277.4,0.28053184]
[1738248807798,0.8011,3278.1,3277.4,0.28053184]
[1738248808614,0.015,3278.0,3276.7,4.50738339]
[1738248808856,0.015,3278.0,3276.7,3.95738339]
[1738248809016,0.0075,3277.8,3276.6,0.62305713]
[1738248809220,0.015,3277.8,3276.6,0.62305713]
[1738248809418,0.015,3277.8,3276.4,0.44885095]
[1738248809635,0.291,3278.3,3276.4,0.44885095]
[1738248809636,0.015,3277.6,3276.4,0.44885095]
[1738248809838,0.015,3277.6,3276.7,0.28246282]
[1738248810204,0.0075,3277.6,3276.7,0.28246282]
[1738248811338,0.0075,3277.6,3276.6,3.33440282]
[1738248811503,0.7822,3277.7,3276.7,3.95738339]
[1738248811703,0.7822,3277.7,3276.6,0.28246282]
[1738248811704,0.8332,3278.2,3277.5,3.05107]
[1738248811903,0.8332,3278.2,3277.6,3.95738339]
[1738248812108,0.8332,3278.2,3277.6,7.00838339]
[1738248812414,0.8332,3278.2,3277.6,3.95738339]
[1738248812623,0.8332,3278.2,3277.7,0.28246282]
[1738248813022,0.7573,3278.8,3277.7,1.07577066]
[1738248813229,0.7573,3278.8,3278.1,3.05054]
[1738248813441,0.015,3278.7,3277.7,0.28246282]
[1738248813615,0.0075,3278.7,3277.7,0.28246282]
[1738248813818,0.015,3278.7,3277.7,0.28246282]
[1738248814248,0.015,3278.5,3277.8,0.28246282]
[1738248814651,2.1,3279.6,3277.8,0.28246282]
[1738248814652,0.015,3278.3,3277.8,0.28246282]
[1738248815148,0.015,3278.3,3276.8,3.05172]
[1738248815149,0.0075,3278.1,3276.9,0.45228259]
[1738248815448,0.015,3277.9,3276.9,0.45228259]
[1738248815657,0.015,3277.7,3276.9,0.45228259]
[1738248816408,0.015,3277.7,3276.5,0.61362692]
[1738248816854,1.062,3277.8,3276.5,0.61362692]
[1738248816855,0.772,3277.8,3277.1,3.95738339]
[1738248817008,0.772,3277.8,3277.3,3.05129]
[1738248817356,0.7598,3279.7,3277.6,0.1]
[1738248817504,0.7598,3279.7,3278.8,3.95738339]
[1738248817712,0.7598,3279.7,3278.5,0.8251]
[1738248818063,0.7598,3279.7,3278.3,3.05036]
[1738248818378,0.015,3279.5,3278.1,3.05052]
[1738248818507,0.015,3279.5,3277.9,3.05068]
[1738248818508,0.0075,3279.3,3277.9,3.05068]
[1738248818708,0.015,3279.3,3277.8,3.05081]
[1738248818909,3.0075,3279.6,3277.7,3.05091]
[1738248818910,0.0075,3279.1,3277.7,3.05091]
[1738248819110,1.1096,3279.0,3278.3,0.45249281]
[1738248819466,0.0075,3278.9,3277.5,0.55]
[1738248819661,0.0075,3278.9,3277.5,3.55]
[1738248819842,0.015,3278.9,3277.6,3.05101]
[1738248820021,0.015,3278.9,3277.3,4.57772729]
[1738248820022,0.7993,3278.6,3277.3,3.05121]
[1738248820232,0.7993,3278.6,3277.8,3.05075]
[1738248820435,0.015,3278.5,3277.0,1.38872349]
[1738248820779,0.015,3278.5,3277.3,3.05125]
[1738248820976,0.015,3278.5,3277.1,3.05147]
[1738248821118,0.8175,3278.4,3277.0,3.05156]
[1738248821319,0.015,3278.3,3277.0,3.05156]
[1738248821546,0.015,3278.1,3277.1,0.28297752]
[1738248821931,0.8175,3278.0,3277.1,0.28297752]
[1738248822136,0.0075,3277.9,3277.1,0.28297752]
[1738248823220,0.0075,3277.7,3277.1,0.28297752]
[1738248823415,0.0075,3277.7,3276.8,3.05175]
[1738248824136,0.8175,3278.0,3277.0,3.05148]
[1738248824328,0.8175,3278.0,3276.8,3.05175]
[1738248824329,0.0075,3277.8,3276.8,3.05175]
[1738248824531,0.0075,3277.6,3276.5,3.33495752]
[1738248824713,0.7723,3277.7,3276.5,0.28297752]
[1738248825178,0.7723,3277.7,3276.9,3.05158]
[1738248825333,0.7723,3277.7,3276.8,3.05175]
[1738248826275,0.7723,3277.7,3276.9,3.05161]
[1738248826561,1.58367795,3280.9,3276.3,7.00955339]
[1738248826562,0.287,3278.6,3277.3,3.05128]
[1738248826864,0.015,3278.4,3276.9,3.05165]
[1738248827068,0.7714,3278.3,3276.7,3.05184]
[1738248827364,3.3377,3278.4,3277.1,3.05139]
[1738248827365,0.7714,3278.1,3277.1,3.05139]
[1738248827843,0.7714,3277.9,3276.3,3.95738339]
[1738248828051,0.288,3278.1,3276.8,0.28301735]
[1738248828259,0.0075,3277.7,3276.8,0.28301735]
[1738248828713,0.015,3277.7,3276.8,0.28301735]
[1738248829117,0.7645,3277.6,3276.8,0.28301735]
[1738248829532,0.7645,3277.6,3276.4,0.28301735]
[1738248829745,0.015,3277.5,3276.4,0.28301735]
[1738248830070,0.015,3277.3,3276.4,0.28301735]
[1738248830236,0.0075,3277.1,3276.4,0.28301735]
[1738248831176,0.7844,3276.8,3276.4,0.28301735]
[1738248831514,0.7844,3276.8,3274.9,0.7697]
[1738248831515,0.015,3276.7,3275.9,0.28301735]
[1738248831633,0.7844,3276.8,3275.9,3.33554735]
[1738248831822,0.7844,3276.8,3275.9,0.28301735]
[1738248832022,0.7844,3276.8,3276.0,3.05248]
[1738248832859,0.7844,3276.8,3276.1,3.0524]
[1738248833526,0.7844,3277.2,3276.3,3.05214]
[1738248833938,0.7844,3277.2,3276.1,3.05238]
[1738248834174,0.7844,3277.2,3275.8,7.01006339]
[1738248834175,0.0075,3277.1,3275.8,7.01006339]
[1738248834677,0.0075,3277.1,3275.9,3.05257]
[1738248835438,0.0075,3277.1,3275.4,3.05297]
[1738248835439,0.015,3276.9,3275.4,3.05297]
[1738248835624,0.015,3276.9,3275.6,3.05285]
[1738248835857,0.015,3276.9,3275.4,3.65345738]
[1738248836175,0.0075,3276.7,3275.3,3.95738339]
[1738248836479,0.0075,3276.7,3275.4,3.05304]
[1738248836627,0.8254,3276.8,3275.4,3.05304]
[1738248836825,0.0075,3276.7,3275.4,0.03052759]
[1738248837137,0.8254,3276.8,3276.0,3.05244]
[1738248837343,0.8254,3276.8,3276.1,3.05239]
[1738248837671,0.0075,3277.3,3276.4,3.65800507]
[1738248837672,0.789,3277.3,3276.4,3.65800507]
[1738248837967,0.0075,3277.2,3276.4,0.60590507]
[1738248838178,0.0075,3277.2,3276.2,3.05228]
[1738248838330,0.0075,3277.2,3276.4,3.05207]
[1738248838759,0.0075,3277.2,3276.2,3.05224]
[1738248839079,0.0075,3277.2,3276.1,3.05237]
[1738248839240,0.0075,3277.2,3275.7,0.8131]
[1738248839443,0.0075,3277.2,3276.4,3.05211]
[1738248839781,0.0075,3277.2,3276.2,3.05222]
[1738248839782,0.789,3277.3,3276.2,3.05222]
[1738248839983,0.789,3277.3,3276.4,3.0521]
[1738248840186,0.789,3277.3,3276.2,3.05222]
[1738248840335,0.0075,3277.2,3275.9,4.58180104]
[1738248840540,0.0075,3277.2,3276.0,3.0525]
[1738248840766,0.0075,3277.2,3275.8,3.05265]
[1738248840967,0.0075,3277.0,3275.4,7.01043339]
[1738248841298,0.8149,3276.7,3275.8,3.66771972]
[1738248841443,0.8149,3276.7,3275.8,0.61506972]
[1738248841638,0.7987,3276.6,3275.8,0.61506972]
[1738248841839,0.015,3276.2,3275.8,0.61506972]
[1738248842086,0.0075,3276.0,3275.8,0.61506972]
[1738248842400,0.0075,3276.0,3274.9,3.95738339]
[1738248842687,0.0075,3276.0,3275.0,3.05343]
[1738248842914,0.7912,3276.1,3275.3,3.05315]
[1738248843207,0.7912,3276.1,3275.7,3.05277]
[1738248843376,0.2,3278.0,3275.6,3.05287]
[1738248843377,0.7794,3276.9,3275.6,3.05287]
[1738248843564,0.0075,3276.8,3275.6,3.05287]
[1738248843766,0.0075,3276.8,3275.7,3.05273]
[1738248844003,0.0075,3276.8,3275.9,3.05259]
[1738248844574,0.0075,3276.8,3275.7,3.0527]
[1738248844963,0.0075,3276.8,3275.5,3.05294]
[1738248845314,0.0075,3276.6,3275.4,7.01039339]
[1738248845495,0.7586,3276.7,3275.4,3.95738339]
[1738248846021,0.7586,3276.7,3275.5,3.05296]
[1738248846184,0.7586,3276.7,3276.1,3.05237]
[1738248846382,0.7586,3276.7,3275.9,3.05259]
[1738248846781,0.7586,3276.7,3275.7,3.05268]
[1738248847313,0.7586,3276.7,3275.9,3.05259]
[1738248847515,0.7586,3276.7,3276.4,3.05206]
[1738248847721,0.7586,3276.7,3276.3,3.05215]
[1738248848216,3.05061,3278.1,3276.3,3.05215]
[1738248848217,1.0928,3277.5,3276.5,3.05202]
[1738248848510,0.0075,3277.4,3276.3,3.05215]
[1738248848668,0.0075,3277.2,3276.2,3.0523]
[1738248848870,0.8138,3277.3,3276.3,3.05221]
[1738248849068,0.0075,3277.2,3276.3,3.0522]
[1738248849669,0.8138,3277.3,3276.5,3.05201]
[1738248849868,0.8138,3277.3,3276.2,3.05225]
[1738248850518,0.8138,3277.3,3276.6,3.05185]
[1738248850683,0.8138,3277.3,3276.5,3.95738339]
[1738248850894,0.8138,3277.3,3276.6,3.05193]
[1738248851220,0.8138,3277.3,3276.5,3.05202]
[1738248851369,0.8138,3277.3,3276.5,3.05199]
[1738248851870,0.8138,3277.3,3277.1,0.60680863]
[1738248855944,0.8138,3277.3,3276.3,3.05221]
[1738248856134,0.8138,3277.3,3276.6,3.05193]
[1738248856846,0.8138,3277.3,3276.5,3.05197]
[1738248856847,0.8138,3277.3,3276.4,3.05206]
[1738248857028,0.8138,3277.3,3276.5,3.05196]
[1738248857432,0.8138,3277.3,3276.7,3.05183]
[1738248857682,0.8138,3277.3,3276.0,7.00981339]
[1738248857888,0.8138,3277.3,3276.4,3.05207]
[1738248858040,0.0075,3277.2,3276.4,3.05207]
[1738248858239,0.8138,3277.3,3277.0,0.60754186]
[1738248859285,0.7692,3277.7,3277.2,3.0513]
[1738248859582,0.7692,3277.7,3277.0,0.60754186]
[1738248860174,0.7692,3277.7,3277.1,3.0514]
[1738248860399,0.7692,3277.7,3277.2,3.05138]
[1738248860554,0.7692,3277.7,3277.0,3.65908186]
[1738248861295,0.7692,3277.7,3277.0,0.60754186]
[1738248862555,0.7692,3277.7,3277.0,3.65911186]
[1738248862754,0.7692,3277.7,3277.2,3.05134]
[1738248862954,0.7692,3277.7,3277.0,6.71060186]
[1738248863416,0.7692,3277.7,3277.0,3.65903186]
[1738248863706,0.7692,3277.7,3277.1,3.05147]
[1738248863915,0.0075,3277.6,3277.0,0.60754186]
[1738248864398,0.7692,3277.7,3277.5,3.05108]
[1738248864568,0.7692,3277.7,3277.6,3.05101]
[1738248864770,0.7692,3277.7,3277.0,3.65902186]
[1738248865303,0.7692,3277.7,3277.1,3.05145]
[1738248865528,0.0075,3277.6,3277.0,0.60754186]
[1738248865730,0.0075,3277.4,3277.0,0.60754186]
[1738248866420,0.015,3277.4,3277.0,0.60754186]
[1738248866639,0.0075,3277.2,3276.1,3.05234]
[1738248866773,0.0075,3277.2,3276.2,3.0523]
[1738248866974,0.0075,3277.2,3276.3,3.05219]
[1738248867225,0.0075,3277.2,3276.4,3.05211]
[1738248867525,0.0075,3277.2,3276.3,3.05219]
[1738248867673,0.7944,3277.3,3276.9,3.0516]
[1738248867873,0.7944,3277.3,3277.0,3.05149]
[1738248868071,0.7944,3277.3,3276.9,3.05164]
[1738248868274,0.7944,3277.3,3277.0,3.05155]
[1738248868528,0.7944,3277.3,3276.9,3.05164]
[1738248868672,0.7944,3277.3,3276.1,0.8174]
[1738248868873,0.7944,3277.3,3276.7,0.62604062]
[1738248869213,0.7944,3277.3,3276.7,3.67782062]
[1738248869709,0.7944,3277.3,3276.7,0.62604062]
[1738248870410,0.7944,3277.3,3276.7,3.67786062]
[1738248870609,0.7944,3277.3,3276.2,0.28331757]
[1738248870814,0.7944,3277.3,3276.3,3.05222]
[1738248871023,0.7944,3277.3,3276.5,3.05203]
[1738248871326,0.0075,3277.2,3276.2,3.05231]
[1738248871696,0.0075,3277.2,3276.4,3.05206]
[1738248871876,0.0075,3277.2,3276.3,3.05216]
[1738248872080,0.0075,3277.2,3276.2,3.05231]
[1738248872283,0.7944,3277.3,3275.9,0.55]
[1738248872535,0.7944,3277.3,3276.9,3.05159]
[1738248872686,0.7944,3277.3,3276.7,3.05183]
[1738248872881,0.7944,3277.3,3276.7,3.05178]
[1738248873214,0.7944,3277.3,3276.8,3.0517]
[1738248873986,0.7944,3277.3,3277.0,3.05156]
[1738248874185,0.7944,3277.3,3276.8,3.0517]
[1738248874417,0.8252,3277.9,3277.2,3.05138]
[1738248874625,0.8252,3277.9,3277.5,3.05105]
[1738248874817,0.8252,3277.9,3277.6,3.05101]
[1738248875022,0.8252,3277.9,3277.4,3.05119]
[1738248875716,0.8252,3277.9,3277.5,3.05107]
[1738248876037,0.8252,3277.9,3277.3,3.05128]
[1738248876203,0.8252,3277.9,3277.1,6.48513602]
[1738248876529,0.8252,3277.9,3277.2,3.05137]
[1738248877051,0.8252,3277.9,3277.1,3.05145]
[1738248877256,0.8252,3277.9,3277.2,3.05135]
[1738248877557,0.0075,3277.8,3277.3,0.60291193]
[1738248877851,0.015,3277.6,3276.7,3.05183]
[1738248878001,0.0075,3277.4,3276.7,0.28385427]
[1738248878427,0.0075,3277.4,3276.9,0.60920371]
[1738248879015,0.0075,3277.4,3276.7,0.28385427]
[1738248879016,0.7672,3277.5,3276.8,3.05174]
[1738248879501,0.7672,3277.5,3276.8,0.60413363]
[1738248879708,0.7672,3277.5,3276.8,3.65583363]
[1738248879905,0.0075,3277.4,3276.8,0.60413363]